Cogmind - Beta 11 @@@ ROGUE MODE // 2022.04.22 @ 23:22:57 Player: Finestep Result: Destroyed by P-70 Sage with Tesla Rifle Performance ------------- Evolutions (5) 2500 Regions Visited (19) 3800 Robots Destroyed (463) 2315 Value Destroyed (17152) 17152 Prototype IDs (244) 4880 Alien Tech Used (0) 0 Bonus (9393) 9393 TOTAL SCORE: 40040 Bonus ------- High Alert Combat Kills 1890 Follower Combat Kills 1477 Entered Garrisons 800 Used RIF Installer 2000 Aligned with FarCom 300 Met Data Miner 300 Used Data Conduit 3000 Friendly Fire -374 Cogmind --------- Core Integrity 0/1000 Matter 110/300 Energy 128/500 System Corruption 31% Temperature Cool (0) Movement Core (350) Ox6 Location -5/Factory Parts ------- > --- POWER (1) -------- (None) > --- PROPULSION (5) --- (None) > --- UTILITY (9) ------ Medium Storage Unit Improved Energy Well Enhanced Optical Array Improved Target Analyzer Armor Integrity Analyzer Deep Network Scanner > --- WEAPON (2) ------- Advanced Assault Cannon > --- INVENTORY (10) --- Weapon Cycler Improved Weapon Shielding Graphene Brace Peak State ------------ > --- POWER ------------ Micro Fission Core > --- PROPULSION ------- Armored Treads Armored Medium Treads Armored Medium Treads Heavy Treads > --- UTILITY ---------- Cargo Storage Unit Enhanced Optical Array Improved Target Analyzer Core Analyzer Armor Integrity Analyzer Transmission Jammer Deep Network Scanner Ghost Barrier > --- WEAPON ----------- Enhanced Gauss Cannon Tesla Bomb Launcher > --- INVENTORY -------- Enhanced Flexi-carbon Leg Improved Energy Well Improved Energy Well Advanced Energy Well Advanced Terrain Scanner Weapon Cycler Nanoactuators Improved Weapon Shielding Active Cooling Armor Graphene Brace Focal Shield Relay Coupler [Sentry] Relay Coupler [Behemoth] Long-range Tractor Beam Combat Drone Bay Advanced Plasma Cannon Heavy Assault Cannon Enhanced Gauss Cannon Tesla Bomb Launcher Heavy Missile Launcher Remote Datajack Improved Remote Datajack Improved Remote Datajack Plasma Cutter [Rating: 105] Favorites ----------- Power Heavy Ion Engine Engine Heavy Ion Engine Power Core Fission Core Reactor Light Antimatter Reactor Propulsion Armored Wheel Treads Armored Treads Leg Aluminum Leg Wheel Armored Wheel Hover Unit Cooled Aerolev Unit Flight Unit Improved Flight Unit Utility Cargo Storage Unit Device Graphene Brace Storage Cargo Storage Unit Processor Core Analyzer Hackware Relay Coupler [Grunt] Protection Hardened Medium Armor Plating Weapon Enhanced Autogun Energy Gun Precision Beam Rifle Energy Cannon Improved EM Pulse Cannon Ballistic Gun Enhanced Autogun Ballistic Cannon Antimatter Cannon Launcher Tesla Bomb Launcher Special Weapon Remote Datajack Slashing Weapon Longsword +1 Build | -11 -10 -9 -9 -9 -8 -8 -8 -8 -8 -7 -7 -7 -7 -6 -6 -6 -6 -5 -5 ------- Run | Scr Mat Mat Min Exi Min Mat Gar Mat Gar Fac Gar Fac Gar Fac Low Low Dat Pro Fac Slots Evolved 10 | . . 2 . . . 2 . . . 2 . . . 2 . . . . 2 Power . | . . . . . . . . . . . . . . . . . . . . Propulsion 3 | . . 1 . . . 1 . . . . . . . . . . . . 1 Utility 7 | . . 1 . . . 1 . . . 2 . . . 2 . . . . 1 Weapon . | . . . . . . . . . . . . . . . . . . . . Parts Attached 491 | 7 15 40 7 . 6 53 20 21 27 13 21 77 29 71 5 6 9 4 60 Power 28 | 1 2 4 . . . 1 . . 1 1 . 6 2 5 . . 1 . 4 Engine 18 | 1 2 4 . . . 1 . . 1 1 . 5 . 1 . . 1 . 1 Core 9 | . . . . . . . . . . . . 1 2 4 . . . . 2 Reactor 1 | . . . . . . . . . . . . . . . . . . . 1 Propulsion 99 | 2 6 12 5 . . 8 1 9 10 2 6 6 12 5 2 . 2 . 11 Treads 35 | . 4 10 2 . . 5 1 1 2 2 2 . . . . . 2 . 4 Leg 22 | 2 1 . . . . . . 5 5 . . . 8 . . . . . 1 Wheel 40 | . 1 1 3 . . 3 . 3 3 . 4 6 4 4 2 . . . 6 Hover 1 | . . . . . . . . . . . . . . 1 . . . . . Flight 1 | . . 1 . . . . . . . . . . . . . . . . . Utility 148 | 2 2 10 2 . . 14 7 2 5 3 7 28 4 29 2 . 3 1 27 Device 61 | 1 1 3 . . . 4 1 . . 1 4 11 1 14 2 . 2 . 16 Storage 12 | 1 1 . 1 . . . . . . . . 1 . 4 . . . . 4 Processor 13 | . . 2 . . . . 1 . . 1 . 4 . . . . . 1 4 Hackware 35 | . . . . . . . 2 1 3 1 2 12 1 10 . . . . 3 Protection 27 | . . 5 1 . . 10 3 1 2 . 1 . 2 1 . . 1 . . Artifact . | . . . . . . . . . . . . . . . . . . . . Weapon 216 | 2 5 14 . . 6 30 12 10 11 7 8 37 11 32 1 6 3 3 18 Energy Gun 36 | 2 2 . . . . 7 . 2 2 3 4 13 1 . . . . . . Energy Cannon 12 | . . 1 . . . 3 . . . . . . . 6 . . 1 . 1 Ballistic Gun 43 | . 3 7 . . 3 14 7 5 4 . . . . . . . . . . Ballistic Cannon 34 | . . 6 . . . . . . . . . 1 5 7 . 4 . 2 9 Launcher 38 | . . . . . 3 4 1 . 1 3 1 4 2 8 1 1 2 . 7 Special Weapon 36 | . . . . . . 1 1 2 2 1 2 12 2 10 . 1 . 1 1 Impact Weapon . | . . . . . . . . . . . . . . . . . . . . Slashing Weapon 17 | . . . . . . 1 3 1 2 . 1 7 1 1 . . . . . Piercing Weapon . | . . . . . . . . . . . . . . . . . . . . Special Melee Weapon . | . . . . . . . . . . . . . . . . . . . . Unidentified Prototypes 20 | . . 4 . . . 4 . . . 1 . 5 1 1 . . 1 . 3 Corrupted Parts 4 | . . . . . . . 1 . . . . . . . . . . . 3 System Corruption 20 | . . . . . . . 3 . . . . . . . . . . . 17 Parts Lost 92 | . 4 7 . . . 9 1 2 4 . 2 12 8 9 . 1 3 . 30 Power 12 | . 1 1 . . . . . . 1 . . 4 1 1 . . . . 3 Propulsion 39 | . 1 3 . . . 5 1 2 3 . . 3 4 4 . 1 1 . 11 Utility 20 | . 1 2 . . . 3 . . . . 2 1 1 1 . . 1 . 8 Weapon 21 | . 1 1 . . . 1 . . . . . 4 2 3 . . 1 . 8 Highest Loss Streak 9 | . 1 3 . . . 4 1 2 4 . 1 4 6 3 . 1 3 . 9 To Critical Strikes . | . . . . . . . . . . . . . . . . . . . . Average Slot Usage (%) 84 | . 91 93 94 88 88 89 88 89 89 92 89 76 74 75 88 85 74 67 73 Engine 6 | . 14 9 11 11 11 9 9 9 8 7 7 6 2 1 6 6 5 6 1 Treads 13 | . 18 28 20 . . 5 35 23 4 7 25 . . . . . 6 13 12 Leg 3 | . 8 . . . . . . 4 16 . . . 20 . . . . . . Wheel 11 | . . 3 12 33 33 30 . 6 14 22 4 16 7 21 15 19 9 6 2 Device 5 | . 6 3 6 . . . . . . 7 5 8 . 7 25 26 18 6 8 Storage 8 | . 14 11 11 11 11 9 9 9 9 7 7 7 7 8 13 13 10 6 5 Processor 6 | . . 4 . . . . . 9 9 15 15 12 7 6 6 6 6 6 17 Hackware 2 | . . . . . . . 1 4 . 4 6 7 . 5 . . . . 6 Protection 6 | . . 10 10 11 11 17 14 4 8 2 . . 6 4 . . 2 6 1 Energy Gun 3 | . 14 . . . . 4 . . 2 14 14 10 . . . . . . . Ballistic Gun 6 | . 12 8 11 11 9 12 16 15 13 . . . . . . . . . . Ballistic Cannon 3 | . . 12 11 11 11 . . . . . . . 12 7 . 2 2 4 8 Naked Turns . | . . . . . . . . . . . . . . . . . . . . Heaviest Build 204 | 15 29 45 160 160 160 173 172 162 166 165 163 166 204 204 175 175 188 191 197 Greatest Support 144 | 20 40 60 60 36 36 80 80 80 50 36 88 56 48 52 34 34 22 10 144 Greatest Overweight (x) 54 | . 1 3 4 4 4 4 2 16 16 6 6 5 54 14 14 7 18 19 18 Average Overweight (x) 3 | . . . 1 4 4 2 1 3 4 4 2 2 4 3 6 5 10 18 1 Largest Inventory Capacity 30 | 8 15 15 30 30 30 30 30 30 30 30 30 30 30 30 30 30 30 30 30 Average Capacity 28 | 7 13 15 20 30 30 30 30 30 30 30 30 30 30 30 30 30 30 30 25 Most Carried 30 | 4 15 15 17 21 23 30 30 30 30 30 30 30 30 30 24 30 30 30 30 Average Carried 26 | 3 11 14 15 18 22 28 29 29 29 29 29 28 28 27 23 28 27 29 21 Final Capacity 30 | 8 15 15 30 30 30 30 30 30 30 30 30 30 30 30 30 30 30 30 10 Final Carried 30 | 4 15 15 17 21 23 30 30 30 30 30 30 30 30 21 24 29 30 30 3 Class Distribution -------------------- 39% | Hauler-Mutant 29% | Bothacker-Mutant 9% | Botlord-Mutant 8% | Scavenger-Mutant 6% | Mutant 3% | Scavenger-Skirmisher Dominant Class ---------------- Mutant | -10/Materials Mutant | -9/Materials Scavenger-Mutant | -9/Mines Hauler-Mutant | -9/Exiles Hauler-Mutant | -8/Mines Hauler-Mutant | -8/Materials Hauler-Mutant | -8/Garrison Bothacker-Mutant | -8/Materials Hauler-Mutant | -8/Garrison Bothacker-Mutant | -7/Factory Bothacker-Mutant | -7/Garrison Bothacker-Mutant | -7/Factory Botlord-Mutant | -7/Garrison Botlord-Mutant | -6/Factory Hauler-Mutant | -6/Lower Caves Hauler-Mutant | -6/Lower Caves Hauler-Mutant | -6/Data Miner Scavenger-Skirmisher | -5/Proximity Caves Hauler-Mutant | -5/Factory Resources | -11 -10 -9 -9 -9 -8 -8 -8 -8 -8 -7 -7 -7 -7 -6 -6 -6 -6 -5 -5 ----------- Run | Scr Mat Mat Min Exi Min Mat Gar Mat Gar Fac Gar Fac Gar Fac Low Low Dat Pro Fac Matter Collected 12855 | 270 126 1448 255 . 56 2001 600 783 741 219 310 1052 682 1686 90 172 132 58 2174 Remotely 1809 | . . . . . . 361 . . . . . . . 598 . . . . 850 Salvage Created 18988 | 192 858 2014 200 . 118 2927 769 438 792 385 690 1787 949 2643 143 127 316 14 3626 Parts 985 | 12 39 123 11 . 16 181 49 33 25 29 31 86 44 134 4 11 13 . 144 Haulers Intercepted 14 | . 1 6 . . . 4 . . . 1 . 1 . . . . . . 1 Recyclers Shooed 30 | . 4 7 . . . 5 . . . . . 1 . 6 . . . . 7 Parts Field Recycled . | . . . . . . . . . . . . . . . . . . . . Retrieved Matter . | . . . . . . . . . . . . . . . . . . . . Parts Self-Destructed 8 | . . . . . . . . . . . . . . . 1 7 . . . Prevented 16 | . . . . . . . . . . . . . . . 3 13 . . . Kills | -11 -10 -9 -9 -9 -8 -8 -8 -8 -8 -7 -7 -7 -7 -6 -6 -6 -6 -5 -5 ------- Run | Scr Mat Mat Min Exi Min Mat Gar Mat Gar Fac Gar Fac Gar Fac Low Low Dat Pro Fac Combat Hostiles Destroyed 306 | . 14 33 2 . 11 46 22 7 11 12 12 26 21 36 . 3 4 . 46 Melee 3 | . . . . . . . . . . . . 1 . 2 . . . . . Guns 118 | . 12 17 1 . . 32 13 7 9 2 7 16 2 . . . . . . Cannons 86 | . . 16 1 . 1 2 . . . . . . 16 15 . 1 . . 34 AOE 78 | . . . . . 10 12 9 . 2 10 3 9 3 9 . 1 . . 10 Classes Destroyed 23 | 3 5 3 1 . 1 4 . . . . 1 1 . . 2 1 . . 1 Worker 39 | 1 1 6 2 . 2 6 . 1 . 5 . 4 . 4 . . . . 7 Builder 27 | . . . . . 1 5 . 3 . 1 . . . 8 . . . . 9 Tunneler 10 | 4 1 . 2 . . 1 . 1 . . . . . . . . . . 1 Hauler 15 | . 1 6 . . . 4 . . . 1 . 2 . . . . . . 1 Recycler 45 | 1 2 9 1 . . 6 . . . . . 6 . 7 . . . . 13 Minesweeper 1 | . . . . . . . . . . . . . . . 1 . . . . Mechanic 1 | . . 1 . . . . . . . . . . . . . . . . . Operator 7 | . 2 1 . . . 2 . . . 2 . . . . . . . . . Watcher 14 | . 1 4 . . . 4 . . . 2 . . . 1 . . . . 2 Swarmer 79 | . 2 9 . . 8 6 10 1 2 12 3 7 4 5 . . . . 10 Cutter 5 | . . . . . . . . . . . 3 . 2 . . . . . . Saboteur 1 | . . . . . . . . . . . . . . . . . . . 1 Grunt 132 | . 12 15 1 . 3 23 7 5 8 . . 7 14 13 . 2 . . 22 Brawler 5 | . . . 1 . . 1 . . . . 1 2 . . . . . . . Duelist 7 | . . 2 . . . 1 1 . . . 2 . . 1 . . . . . Protector 3 | . . . . . . . . . . . . 2 . . . . . . 1 Sentry 23 | . . 7 . . . 6 4 . . . 1 2 . 2 . . . . 1 Specialist 8 | . . . . . . 4 . . . . . 1 . 2 . . . . 1 Hunter 18 | . . . . . . 3 . 1 1 . . 1 . 7 . . . . 5 Programmer 18 | . . . . . . 1 . . . . 2 4 1 5 . . . . 5 Heavy 2 | . . . . . . 1 . . . . . . . 1 . . . . . Enhanced Grunt 4 | . . . . . . . . . . . . . . . . . 4 . . Decomposer 4 | . . . . . . . . . . . . . . . 4 . . . . Samaritan 2 | . . . . . . . . . . . . . . . 1 . . 1 . Master Thief 1 | . . . . . . . . . . . . . . . . 1 . . . Best Kill Streak 22 | 4 4 6 3 . 8 7 10 5 4 13 3 8 5 22 1 2 3 . 10 Combat Bots Only 13 | . 3 5 2 . 7 6 10 3 4 10 3 7 5 13 . 2 3 . 6 Max Kills in Single Turn 8 | 1 1 2 1 . 3 3 3 1 2 5 3 8 1 3 1 1 1 1 5 Gunslinging 1 | . . . . . . . . . 1 . . . . . . . . . . Exploded 6 | . . . . . 3 2 3 . 2 3 3 6 1 2 . 1 . . 3 Melee 1 | . . . . . . . . . . . . 1 . 1 . . . . . Uniques/NPCs Destroyed 1 | . . . . . . . . . . . . . . . . . 1 . . Data Miner (-6/Data Miner) Combat | -11 -10 -9 -9 -9 -8 -8 -8 -8 -8 -7 -7 -7 -7 -6 -6 -6 -6 -5 -5 -------- Run | Scr Mat Mat Min Exi Min Mat Gar Mat Gar Fac Gar Fac Gar Fac Low Low Dat Pro Fac Damage Taken 22211 | . 838 1745 21 . 364 2194 738 398 754 357 810 1856 1501 4267 . 225 150 . 5993 Core 2915 | . 140 191 11 . 64 303 40 35 76 78 55 315 89 468 . . 37 . 1013 Absorbed by Shields 430 | . . . . . . 208 . . . . 60 . 55 107 . . . . . Reduced by Siege Mode 36 | . . . . . . . . . . . . . . . . . . . 36 Redirected to Shielding 106 | . . . . . . 106 . . . . . . . . . . . . . Regen/Repaired (Parts) 113 | . . . . . . 11 . . . . . . . 102 . . . . . Core Remaining (%) 42 | 100 44 . . . 33 . . . 17 . . . 23 . . . . 40 . Volleys Fired 1275 | 11 77 175 11 . 24 201 69 36 45 24 47 118 70 128 . 23 8 18 190 Largest 2 | 2 2 2 2 . 2 2 2 2 2 2 2 2 2 2 . 1 1 1 2 Hottest 176 | 100 100 74 62 . 62 90 50 122 50 122 122 176 176 109 . 60 60 60 155 Shots Fired 2091 | 22 151 346 22 . 30 376 125 66 73 41 80 170 99 170 . 23 8 18 271 Gun 1135 | 22 151 148 11 . 6 336 111 59 61 34 68 114 14 . . . . . . Cannon 699 | . . 198 11 . 12 20 . . . . . . 63 119 . 13 1 13 249 Launcher 113 | . . . . . 12 16 11 . 1 7 2 5 4 25 . 4 7 . 19 Special 144 | . . . . . . 4 3 7 11 . 10 51 18 26 . 6 . 5 3 Kinetic 1352 | . 16 346 22 . 18 301 111 55 60 . . . 63 105 . 13 1 13 228 Thermal 443 | 22 135 . . . . 4 . 4 1 34 68 114 28 1 . 6 . 5 21 Explosive 56 | . . . . . 12 16 11 . 1 7 2 5 . . . . . . 2 Electromagnetic 126 | . . . . . . 55 . . . . . . 4 39 . 4 7 . 17 Robot Hit Streak 29 | 15 14 17 5 . 4 29 16 21 6 6 20 23 10 13 . 5 2 5 21 Robot Miss Streak 7 | 1 4 6 3 . 2 7 4 3 2 2 1 4 3 2 . 3 . 1 7 Penetration Max 1 | . . . . . . . . . . . . . . . . . . . 1 Secondary Targets 19 | . 1 3 . . . 4 2 2 3 . 1 3 . . . . . . . Max Gunslinging Chain 1 | . 1 1 . . . 1 1 1 1 . 1 1 . . . . . . . Shots Hit Robots 1348 | 17 97 212 11 . 8 239 81 45 58 24 73 120 63 110 6 11 1 10 162 Core Hits 762 | 7 40 84 7 . 22 122 37 19 25 31 31 66 30 78 2 6 6 2 147 Critical Kills 2 | . . 1 . . . . . . 1 . . . . . . . . . . Critical Parts Destroyed 1 | . . . . . . . 1 . . . . . . . . . . . . Critical Strikes 65 | 1 7 3 . . 1 1 1 . 2 1 4 6 2 6 . . . 1 29 Burn 19 | 1 7 . . . . . . . . 1 4 6 . . . . . . . Destroy 3 | . . 1 . . . . 1 . 1 . . . . . . . . . . Blast 40 | . . 2 . . 1 . . . . . . . 2 5 . . . 1 29 Corrupt 1 | . . . . . . 1 . . . . . . . . . . . . . Sever 2 | . . . . . . . . . 1 . . . . 1 . . . . . Melee Attacks 84 | . . . . . . 1 17 1 17 . 16 6 9 5 10 2 . . . Impact . | . . . . . . . . . . . . . . . . . . . . Slashing 84 | . . . . . . 1 17 1 17 . 16 6 9 5 10 2 . . . Piercing . | . . . . . . . . . . . . . . . . . . . . Sneak Attacks 13 | . . . . . . . . . . . . 3 . 4 6 . . . . Combat Hostiles 4 | . . . . . . . . . . . . . . 4 . . . . . Follow-up Attacks . | . . . . . . . . . . . . . . . . . . . . Damage Inflicted 43027 | 224 1148 3255 201 . 922 6141 2901 746 1891 1424 2179 3159 2461 5760 544 707 221 273 8870 Guns 12332 | 224 1148 1362 102 . 26 3795 1215 746 582 406 870 1664 192 . . . . . . Cannons 13542 | . . 1888 81 . 56 331 . . . . . . 1314 3106 . 391 40 224 6111 Explosions 11990 | . . . . . 840 2004 819 . 193 1018 179 1166 246 2389 . 247 181 . 2708 Melee 4794 | . . . . . . . 867 . 1116 . 1130 318 564 255 544 . . . . Ramming 108 | . . 5 18 . . . . . . . . 11 . . . 23 . . 51 Kinetic 19561 | . 51 3250 183 . 82 3326 1215 679 582 . . . 1314 2716 . 391 40 224 5508 Thermal 5850 | 224 1097 . . . . 262 . 67 . 406 870 1664 337 69 . 46 15 49 744 Explosive 6397 | . . . . . 840 1753 819 . 193 1018 179 1166 . . . . . . 429 Electromagnetic 6317 | . . . . . . 800 . . . . . . 246 2720 . 247 166 . 2138 Impact . | . . . . . . . . . . . . . . . . . . . . Slashing 4794 | . . . . . . . 867 . 1116 . 1130 318 564 255 544 . . . . Piercing . | . . . . . . . . . . . . . . . . . . . . Highest Corruption 30 | . . . . . . 1 4 4 4 . . 2 1 7 . . . . 30 Average Corruption 3 | . . . . . . 1 1 4 4 . . 1 1 3 . . . . 11 Corruption Purged 9 | . . . . . . . . . . . . 2 . 7 . . . . . Corruption Blocked . | . . . . . . . . . . . . . . . . . . . . Effects 174 | . . . . . . 1 29 15 47 . . 9 4 32 . . . . 37 Message Errors 38 | . . . . . . 1 9 5 11 . . 1 1 5 . . . . 5 Matter Fused 56 | . . . . . . . 3 6 15 . . 3 3 13 . . . . 13 Heat Flow Errors 14 | . . . . . . . 4 1 2 . . 1 . 4 . . . . 2 Energy Discharges 11 | . . . . . . . 3 1 5 . . . . 1 . . . . 1 Parts Rejected 4 | . . . . . . . 1 . 1 . . . . . . . . . 2 Data Loss (minor) 20 | . . . . . . . 2 . 8 . . 2 . 7 . . . . 1 Data Loss (major) 6 | . . . . . . . 1 . 2 . . 1 . . . . . . 2 Misfires 8 | . . . . . . . 4 1 1 . . 1 . . . . . . 1 Alerts 5 | . . . . . . . 1 1 2 . . . . . . . . . 1 Weapon Failures 12 | . . . . . . . 1 . . . . . . 2 . . . . 9 Overload Shots . | . . . . . . . . . . . . . . . . . . . . Overflow Damage 1554 | . . 26 4 . 47 198 208 . 55 50 28 80 87 123 333 . . 22 293 Projectiles 471 | . . 26 4 . . 52 . . . . . . 83 101 . . . 22 183 Explosions 446 | . . . . . 47 146 71 . . 50 . . . 22 . . . . 110 Melee 637 | . . . . . . . 137 . 55 . 28 80 4 . 333 . . . . Knockbacks 89 | . . 18 2 . 1 1 . . . . . . 14 20 . 1 . . 32 Impact . | . . . . . . . . . . . . . . . . . . . . Kinetic 85 | . . 17 2 . 1 1 . . . . . . 13 20 . 1 . . 30 Secondary 4 | . . 1 . . . . . . . . . . 1 . . . . . 2 Self-Inflicted Damage 342 | . . . . . 30 31 33 . . 37 . 24 . 50 . 16 . . 121 Shots 16 | . . . . . 1 2 1 . . 2 . 2 . 3 . 1 . . 4 Rammed 10 | . . 2 . . . . . . . . . 1 . . . 1 . . 6 Targets Rammed 12 | . . 2 2 . . . . . . . . 1 . . . 1 . . 6 Kicked . | . . . . . . . . . . . . . . . . . . . . Crushed 2 | . . . 2 . . . . . . . . . . . . . . . . Highest Temperature 676 | 239 312 380 27 . 70 313 300 182 227 . 240 399 676 113 . 34 6 176 491 Average Temperature 84 | 122 71 114 12 . 24 60 79 70 44 . 88 90 275 21 . 11 4 63 106 Received Heat Transfer 5763 | . 369 660 12 . 117 721 279 234 405 . 87 411 624 610 . 57 . . 1177 Effects 36 | . 2 1 . . . 2 . . . . 2 . 17 . . . . . 12 Shutdowns 5 | . . . . . . . . . . . . . 2 . . . . . 3 Energy Bleed 7 | . . 1 . . . 2 . . . . 2 . 1 . . . . . 1 Interference 8 | . 2 . . . . . . . . . . . 2 . . . . . 4 Damage (minor) 1 | . . . . . . . . . . . . . 1 . . . . . . Damage (major) 15 | . . . . . . . . . . . . . 11 . . . . . 4 Siege Activations 5 | . . . . . . . . . . . . . . . . . . . 5 Total Turns 112 | . . . . . . . . . . . . . . . . . . . 112 Longest Duration 34 | . . . . . . . . . . . . . . . . . . . 34 Robots Corrupted 19 | . . . . . . . . . . . . . . 10 . 1 4 . 4 Combat Hostiles 17 | . . . . . . . . . . . . . . 10 . 1 4 . 2 Parts Fried 49 | . . . . . . 4 . . . . . . . 24 . 2 5 . 14 Impact Corruptions 1 | . . . . . . . . . . . . . 1 . . . . . . Robots Melted 4 | . 2 . . . . . . . . . 2 . . . . . . . . Combat Hostiles 4 | . 2 . . . . . . . . . 2 . . . . . . . . Parts Melted 27 | . 5 . . . . . 1 1 . 1 5 10 . . . . . . 4 Heat Transferred 13955 | 740 3573 . . . . 337 . 148 . 962 2071 3860 831 87 . 148 50 148 1000 Parts Sabotaged . | . . . . . . . . . . . . . . . . . . . . Parts Stolen 3 | . . . . . . . . . . . . . . . . 3 . . . Parts Stripped . | . . . . . . . . . . . . . . . . . . . . Power Chain Reactions 10 | . . . . . . 4 . . . . . . . 3 . . 1 . 2 Missiles Intercepted . | . . . . . . . . . . . . . . . . . . . . Alert | -11 -10 -9 -9 -9 -8 -8 -8 -8 -8 -7 -7 -7 -7 -6 -6 -6 -6 -5 -5 ------- Run | Scr Mat Mat Min Exi Min Mat Gar Mat Gar Fac Gar Fac Gar Fac Low Low Dat Pro Fac Peak Influence 1604 | 30 347 682 314 . 350 1243 1604 874 678 560 656 507 653 502 . . . . 744 Initial 807 | . 19 88 244 . . 60 807 781 156 355 287 344 88 342 . . . . . Average 537 | 8 215 457 210 . 205 373 1436 561 473 452 522 246 406 308 . . . . 307 Maximum Alert Level 5 | . 1 2 1 . 1 4 5 3 2 2 2 2 2 2 . . . . 3 Low Security (%) 19 | 100 33 6 44 . 65 44 . . 4 . . 50 12 23 . . . . 36 Level 1 28 | . 66 26 55 . 34 27 . 49 29 36 14 40 27 49 . . . . 23 Level 2 33 | . . 66 . . . 9 . 7 65 63 85 9 59 27 . . . . 37 Level 3 4 | . . . . . . 13 6 43 . . . . . . . . . . 1 Level 4 7 | . . . . . . 6 47 . . . . . . . . . . . . Level 5 6 | . . . . . . . 46 . . . . . . . . . . . . High Security . | . . . . . . . . . . . . . . . . . . . . Max Security . | . . . . . . . . . . . . . . . . . . . . Squads Dispatched 69 | . 4 5 . . . 15 . 2 . 5 . 8 . 17 . . . . 13 Investigation 16 | . 2 1 . . . 2 . 1 . 1 . 5 . 1 . . . . 3 Extermination 10 | . . . . . . . . . . 1 . 3 . 3 . . . . 3 Reinforcement 24 | . 2 3 . . . 7 . 1 . 1 . . . 5 . . . . 5 Assault 4 | . . 1 . . . . . . . . . . . 3 . . . . . Garrison 15 | . . . . . . 6 . . . 2 . . . 5 . . . . 2 Intercept . | . . . . . . . . . . . . . . . . . . . . Searches Triggered . | . . . . . . . . . . . . . . . . . . . . Construction Impeded 8 | . . . . . . 2 . . . . . . . 2 . . . . 4 Haulers Reinforced 1 | . . . . . . . . . . . . . . 1 . . . . . Active Scanning Responses . | . . . . . . . . . . . . . . . . . . . . Cargo Convoy Interrupts 3 | . . . . . . . . . . . . 1 . 1 . . . . 1 Stealth | -11 -10 -9 -9 -9 -8 -8 -8 -8 -8 -7 -7 -7 -7 -6 -6 -6 -6 -5 -5 --------- Run | Scr Mat Mat Min Exi Min Mat Gar Mat Gar Fac Gar Fac Gar Fac Low Low Dat Pro Fac Distress Signals 18 | . 1 5 . . . 5 . 1 . 1 . . . 1 . . . . 4 Communications Jammed 71 | . . . . . . . . . . . . 3 . . . . . . 68 Distress Signals 71 | . . . . . . . . . . . . 3 . . . . . . 68 Times Spotted 485 | . 23 55 2 . 11 73 24 7 21 18 18 50 26 68 . 11 4 . 74 Peak Tracking Total 14 | . 4 8 2 . 7 7 6 3 5 5 3 10 7 14 . 5 2 . 6 Tactical Retreats 23 | . 1 4 . . . 4 2 . 1 . . 1 2 2 . . . . 6 Traps | -11 -10 -9 -9 -9 -8 -8 -8 -8 -8 -7 -7 -7 -7 -6 -6 -6 -6 -5 -5 ------- Run | Scr Mat Mat Min Exi Min Mat Gar Mat Gar Fac Gar Fac Gar Fac Low Low Dat Pro Fac Traps Triggered 38 | . 4 . . . . 2 4 . 4 . 11 5 4 3 . . . . 1 Indirectly 1 | . . . . . . . . . . . . . . . . . . . 1 Trap Hack Attempts . | . . . . . . . . . . . . . . . . . . . . Triggered . | . . . . . . . . . . . . . . . . . . . . Disarmed . | . . . . . . . . . . . . . . . . . . . . Reprogrammed . | . . . . . . . . . . . . . . . . . . . . Reused 4 | . . . . . . . . . . . . . . . . . 4 . . Traps Extracted . | . . . . . . . . . . . . . . . . . . . . Installed 5 | . . . . . . . . . . . . . . . . . 5 . . Triggered 6 | . . . . . . . . . . . . . . . 3 3 . . . Most Traps Carried 5 | . . . . . . . . . . . . . . . 4 5 5 . . Machines | -11 -10 -9 -9 -9 -8 -8 -8 -8 -8 -7 -7 -7 -7 -6 -6 -6 -6 -5 -5 ---------- Run | Scr Mat Mat Min Exi Min Mat Gar Mat Gar Fac Gar Fac Gar Fac Low Low Dat Pro Fac Machines Disabled 47 | . . 3 1 . 2 . 4 1 3 1 4 7 5 4 . . . . 12 Max in Single Turn 4 | . . 1 1 . 2 . 1 1 1 1 1 4 1 1 . . . . 3 Garrison Access 5 | . . . . . . . . . . 1 . 1 . 3 . . . . . Garrison Relay 15 | . . . . . . . 4 . 3 . 4 . 4 . . . . . . Machines Sabotaged . | . . . . . . . . . . . . . . . . . . . . Garrisons Compromised . | . . . . . . . . . . . . . . . . . . . . Overloaded Fab Kills . | . . . . . . . . . . . . . . . . . . . . Hacking | -11 -10 -9 -9 -9 -8 -8 -8 -8 -8 -7 -7 -7 -7 -6 -6 -6 -6 -5 -5 --------- Run | Scr Mat Mat Min Exi Min Mat Gar Mat Gar Fac Gar Fac Gar Fac Low Low Dat Pro Fac Machines Accessed 74 | . 8 6 . 1 . 14 . 3 . 5 . 16 . 10 . 1 4 . 6 Terminals 40 | . 6 4 . . . 9 . 2 . 3 . 8 . 5 . . . . 3 Fabricators 9 | . . . . . . . . . . . . 5 . 2 . . . . 2 Repair Stations 3 | . . . . . . 2 . . . . . . . 1 . . . . . Recycling Units 5 | . 2 1 . . . . . . . . . 1 . . . . . . 1 Scanalyzers 3 | . . 1 . . . 2 . . . . . . . . . . . . . Garrison Access 8 | . . . . . . 1 . 1 . 2 . 2 . 2 . . . . . Total Hacks 221 | . 25 20 . 1 . 39 . 10 . 10 . 45 . 24 . 1 28 . 18 Successful 134 | . 11 13 . 1 . 28 . 5 . 7 . 17 . 14 . 1 28 . 9 Failed 87 | . 14 7 . . . 11 . 5 . 3 . 28 . 10 . . . . 9 Catastrophic 18 | . 2 1 . . . 6 . . . 1 . 3 . 3 . . . . 2 Database Lockouts . | . . . . . . . . . . . . . . . . . . . . Manual 99 | . 16 12 . 1 . 16 . 9 . 2 . 22 . 13 . . . . 8 Terminals 113 | . 18 14 . . . 25 . 8 . 5 . 23 . 11 . . . . 9 Fabricators 26 | . . . . . . . . . . . . 16 . 5 . . . . 5 Repair Stations 8 | . . . . . . 4 . . . . . . . 4 . . . . . Recycling Units 15 | . 7 3 . . . . . . . . . 1 . . . . . . 4 Scanalyzers 10 | . . 3 . . . 7 . . . . . . . . . . . . . Garrison Access 19 | . . . . . . 3 . 2 . 5 . 5 . 4 . . . . . Terminal Hacks 63 | . 3 6 . 1 . 10 . 2 . 4 . 4 . 3 . 1 28 . 1 Record 11 | . . . . . . . . . . . . . . . . . 11 . . Part Schematic 11 | . . 1 . . . . . . . . . . . . . . 10 . . Robot Schematic 4 | . . . . . . . . . . . . . . . . . 4 . . Robot Analysis 3 | . . 1 . . . . . . . 1 . 1 . . . . . . . Prototype ID Bank 5 | . . 1 . . . 1 . . . . . . . . . . 3 . . Open Door 1 | . . . . . . . . . . . . . . . . 1 . . . Open DSF 1 | . . . . . . . . . . 1 . . . . . . . . . Branch Access Points 3 | . . 1 . . . 1 . . . . . 1 . . . . . . . Terminal Index 1 | . . . . . . 1 . . . . . . . . . . . . . Alert Level 1 | . . . . . . 1 . . . . . . . . . . . . . Unreport Threat 8 | . . 1 . . . 2 . 2 . . . 2 . 1 . . . . . Locate Traps 3 | . . . . . . . . . . . . . . 2 . . . . 1 Hauler Manifests 4 | . 1 . . . . 2 . . . 1 . . . . . . . . . Registered Components 2 | . 1 . . . . 1 . . . . . . . . . . . . . Zone Layout 4 | . 1 1 . . . 1 . . . 1 . . . . . . . . . EX-Prototype ID Bank 1 | . . . . 1 . . . . . . . . . . . . . . . Fabricator Hacks 7 | . . . . . . . . . . . . 3 . 2 . . . . 2 Network Status 2 | . . . . . . . . . . . . 2 . . . . . . . Load Schematic 2 | . . . . . . . . . . . . . . 1 . . . . 1 Build 3 | . . . . . . . . . . . . 1 . 1 . . . . 1 Repair Station Hacks 4 | . . . . . . 3 . . . . . . . 1 . . . . . Scan Component 3 | . . . . . . 2 . . . . . . . 1 . . . . . Repair 1 | . . . . . . 1 . . . . . . . . . . . . . Recycling Unit Hacks 5 | . 2 1 . . . . . . . . . 1 . . . . . . 1 Retrieve Components 5 | . 2 1 . . . . . . . . . 1 . . . . . . 1 Scanalyzer 9 | . . 2 . . . 7 . . . . . . . . . . . . . Insert Component 4 | . . 1 . . . 3 . . . . . . . . . . . . . Analyze 5 | . . 1 . . . 4 . . . . . . . . . . . . . Garrison Access Hacks 10 | . . . . . . 1 . 1 . 3 . 3 . 2 . . . . . Unlock Access 4 | . . . . . . 1 . 1 . 1 . 1 . . . . . . . Seal Access 4 | . . . . . . . . . . 1 . 1 . 2 . . . . . Coupler Status 2 | . . . . . . . . . . 1 . 1 . . . . . . . Unauthorized Hacks 36 | . 6 4 . . . 7 . 2 . . . 6 . 6 . . . . 5 Terminals 20 | . 4 3 . . . 5 . 1 . . . 2 . 3 . . . . 2 Track 3 | . 1 1 . . . 1 . . . . . . . . . . . . . Assimilate 1 | . 1 . . . . . . . . . . . . . . . . . . Botnet 10 | . 1 1 . . . 3 . . . . . 1 . 2 . . . . 2 Operators 6 | . 1 1 . . . 1 . 1 . . . 1 . 1 . . . . . Fabricators 5 | . . . . . . . . . . . . 3 . 1 . . . . 1 Fabnet 5 | . . . . . . . . . . . . 3 . 1 . . . . 1 Repair Stations 1 | . . . . . . . . . . . . . . 1 . . . . . Mechanics 1 | . . . . . . . . . . . . . . 1 . . . . . Recycling Units 5 | . 2 1 . . . . . . . . . . . . . . . . 2 Monitor 1 | . . . . . . . . . . . . . . . . . . . 1 Mask 1 | . . . . . . . . . . . . . . . . . . . 1 Tunnel 3 | . 2 1 . . . . . . . . . . . . . . . . . Scanalyzers . | . . . . . . . . . . . . . . . . . . . . Garrison Access 5 | . . . . . . 2 . 1 . . . 1 . 1 . . . . . Broadcast 1 | . . . . . . . . . . . . . . 1 . . . . . Restock 1 | . . . . . . 1 . . . . . . . . . . . . . Reprogram 1 | . . . . . . 1 . . . . . . . . . . . . . Eject 2 | . . . . . . . . 1 . . . 1 . . . . . . . Data Cores Recovered 2 | . . . . . . . . . . 1 . 1 . . . . . . . Used 1 | . . . . . . . . . . 1 . . . . . . . . . Hacking Detections 60 | . 6 5 . . . 13 . 3 . 4 . 14 . 9 . . . . 6 Full Trace Events 10 | . . . . . . 1 . . . 1 . 4 . 1 . . . . 3 Feedback Events . | . . . . . . . . . . . . . . . . . . . . Feedback Blocked . | . . . . . . . . . . . . . . . . . . . . Robot Schematics Acquired 4 | . . . . . . . . . . . . . . . . . 4 . . Robots Built . | . . . . . . . . . . . . . . . . . . . . Authchips . | . . . . . . . . . . . . . . . . . . . . Time . | . . . . . . . . . . . . . . . . . . . . Total Robot Build Rating . | . . . . . . . . . . . . . . . . . . . . Part Schematics Acquired 15 | . . 2 . . . 3 . . . . . . . . . . 10 . . Parts Built 3 | . . . . . . . . . . . . 1 . 1 . . . . 1 Authchips . | . . . . . . . . . . . . . . . . . . . . Time 261 | . . . . . . . . . . . . 152 . 25 . . . . 84 Total Part Build Rating 12 | . . . . . . . . . . . . 5 . 1 . . . . 6 Parts Repaired 1 | . . . . . . 1 . . . . . . . . . . . . . Time 108 | . . . . . . 108 . . . . . . . . . . . . . Parts Recycled . | . . . . . . . . . . . . . . . . . . . . Recycled Matter . | . . . . . . . . . . . . . . . . . . . . Retrieved Matter . | . . . . . . . . . . . . . . . . . . . . Retrieved Components 40 | . 13 10 . . . . . . . . . 7 . . . . . . 10 Parts Scanalyzed 4 | . . 1 . . . 3 . . . . . . . . . . . . . Part Schematics Acquired 4 | . . 1 . . . 3 . . . . . . . . . . . . . Parts Damaged . | . . . . . . . . . . . . . . . . . . . . Bothacking | -11 -10 -9 -9 -9 -8 -8 -8 -8 -8 -7 -7 -7 -7 -6 -6 -6 -6 -5 -5 ------------ Run | Scr Mat Mat Min Exi Min Mat Gar Mat Gar Fac Gar Fac Gar Fac Low Low Dat Pro Fac Used RIF Installer 4 | . . . . . . . 1 . 1 . 1 . 1 . . . . . . Threat Obfuscator 1 | . . . . . . . . . . . 1 . . . . . . . . Zone Cloak 1 | . . . . . . . . . 1 . . . . . . . . . . Structural Interface 1 | . . . . . . . . . . . . . 1 . . . . . . Robots Hacked 63 | . . . . . . . 2 3 7 . 5 21 3 16 1 . . . 5 Non-combat 18 | . . . . . . . . 3 . . . 13 . 2 . . . . . Combat 45 | . . . . . . . 2 . 7 . 5 8 3 14 1 . . . 5 Robot Hacks Applied 63 | . . . . . . . 2 4 7 . 5 27 3 15 . . . . . generate_echo 1 | . . . . . . . . . . . . 1 . . . . . . . ignore_repairs 2 | . . . . . . . . . . . . 2 . . . . . . . drop_inventory 5 | . . . . . . . . 2 . . . 3 . . . . . . . ignore_parts 2 | . . . . . . . . . . . . 2 . . . . . . . purge_threat 3 | . . . . . . . . 1 . . . . . 2 . . . . . block_reporting 1 | . . . . . . . . . . . . 1 . . . . . . . map_route 2 | . . . . . . . . . . . . 2 . . . . . . . mark_security 1 | . . . . . . . . . . . . 1 . . . . . . . relay_feed 1 | . . . . . . . . . . . . 1 . . . . . . . find_garrison 3 | . . . . . . . . . . . . 3 . . . . . . . disrupt_area 1 | . . . . . . . . . 1 . . . . . . . . . . overload_power 2 | . . . . . . . . 1 . . . 1 . . . . . . . amplify_resonance 5 | . . . . . . . . . 2 . . 1 . 2 . . . . . reboot_system 1 | . . . . . . . . . . . . . . 1 . . . . . overwrite_iff 5 | . . . . . . . . . 2 . . 1 . 2 . . . . . streamctrl_high 2 | . . . . . . . . . . . . . 2 . . . . . . formatsys_low 2 | . . . . . . . . . . . . . . 2 . . . . . formatsys_high 24 | . . . . . . . 2 . 2 . 5 8 1 6 . . . . . Relay Couplers Released 76 | . . . . . . 4 15 4 10 . 16 4 18 5 . . . . . Ejected 6 | . . . . . . . . 4 . . . 2 . . . . . . . Machine Destruction 63 | . . . . . . . 15 . 10 . 16 2 18 2 . . . . . Programmers 7 | . . . . . . 4 . . . . . . . 3 . . . . . Attached 27 | . . . . . . . 2 1 3 1 2 9 1 8 . . . . . Fabnet Peak Effective % 9 | . . . . . . . . . . . . . . 9 9 9 9 6 6 Autooverrided 10 | . . . . . . . . . . . . . . 4 1 . . . 5 Robots Rewired 7 | . . . . . . . . . 6 . . . . . . . . . 1 Allies Hacked 1 | . . . . . . . . . . . . 1 . . . . . . . Hacks Repelled . | . . . . . . . . . . . . . . . . . . . . Allies | -11 -10 -9 -9 -9 -8 -8 -8 -8 -8 -7 -7 -7 -7 -6 -6 -6 -6 -5 -5 -------- Run | Scr Mat Mat Min Exi Min Mat Gar Mat Gar Fac Gar Fac Gar Fac Low Low Dat Pro Fac Total Allies 53 | . 1 . . . . 2 2 . 10 . 5 9 3 14 1 . . . 6 Largest Group 6 | . 1 1 . . . 2 2 2 6 5 2 2 3 3 3 2 1 . 2 Highest-Rated Group 209 | . 10 10 . . . 32 32 32 69 64 48 106 56 207 209 180 90 . 58 Highest-Rated Ally 106 | . 10 10 . . . 16 16 16 18 18 32 106 32 90 90 90 90 . 43 Total Orders 1 | . . . . . . . . . . . . . . 1 . . . . . AID 1 | . . . . . . . . . . . . . . 1 . . . . . Ally Attacks 290 | . . . . . . 22 7 10 31 19 12 48 20 56 . 19 7 . 39 Total Damage 5862 | . . . . . . 238 97 102 437 327 181 706 405 1656 . 669 219 . 825 Kills 52 | . . . . . . 4 . 2 6 2 1 8 5 13 . 6 . . 5 Allies Corrupted 2 | . . . . . . . . . . . . . . . . . . . 2 Allies Melted 3 | . . . . . . . . . . . . 1 1 . . 1 . . . Intel | -11 -10 -9 -9 -9 -8 -8 -8 -8 -8 -7 -7 -7 -7 -6 -6 -6 -6 -5 -5 ------- Run | Scr Mat Mat Min Exi Min Mat Gar Mat Gar Fac Gar Fac Gar Fac Low Low Dat Pro Fac Robot Analysis Total 131 | . . 1 . . . . . . . 1 . 1 . . . . 128 . . Derelict Logs Recovered 2 | . . . 1 . . . . . . . . . . . . . . 1 . Drone Launches 2 | . . . . . . . . . . . . . . . . . . . 2 Drone Recoveries . | . . . . . . . . . . . . . . . . . . . . Exploration | -11 -10 -9 -9 -9 -8 -8 -8 -8 -8 -7 -7 -7 -7 -6 -6 -6 -6 -5 -5 ------------- Run | Scr Mat Mat Min Exi Min Mat Gar Mat Gar Fac Gar Fac Gar Fac Low Low Dat Pro Fac Turns Passed 28826 | 117 927 1700 725 439 456 2725 3668 898 2157 834 2525 2025 2021 2127 710 910 423 1741 1698 Spaces Moved 12062 | 60 410 712 431 291 261 1337 1072 332 883 481 1011 1154 598 1052 376 510 149 471 471 Core 16 | 2 . . . . . . . . . . . . 1 . . . . . 13 Treads 3421 | . 278 507 259 . . 89 1072 178 . . 720 . . . . . . . 318 Legs 719 | 58 132 . . . . . . 9 235 . . . 278 . . . . . 7 Wheels 7906 | . . 205 172 291 261 1248 . 145 648 481 291 1154 319 1052 376 510 149 471 133 Hover . | . . . . . . . . . . . . . . . . . . . . Flight . | . . . . . . . . . . . . . . . . . . . . Fastest Speed 50 | 50 120 105 150 150 150 132 247 155 150 150 135 123 131 135 161 161 190 350 86 Average Speed 195 | 117 151 151 156 150 150 147 321 227 203 152 221 131 279 150 180 162 247 357 224 Slowest Speed 2750 | 120 240 240 160 150 150 327 330 540 680 180 400 175 2750 300 300 190 350 365 500 Overloaded Moves . | . . . . . . . . . . . . . . . . . . . . Propulsion Burnouts . | . . . . . . . . . . . . . . . . . . . . Robots Hopped . | . . . . . . . . . . . . . . . . . . . . Cave-ins Triggered . | . . . . . . . . . . . . . . . . . . . . Exploration Rate (%) 55 | 6 60 65 87 70 33 80 71 25 72 15 87 38 91 31 44 65 78 68 17 Regions Visited 19 Branch Regions 7 Pre-discovered Areas 33 | . 2 1 1 . . . . . . . . . . . . . 29 . . Known Exits Taken 7 | . . 1 . . . 1 . 1 . 1 . 1 . . . . 1 1 . Unknown Exits Taken 8 | 1 1 . 1 1 1 . . . . . . . . 1 1 1 . . . Scrap Searched 5 | . . . 1 . . . . . . . . . . . 1 2 . 1 . Spaces Dug 54 | . . . . . 7 1 3 1 6 11 . 7 . 1 4 2 . 5 6 Terrain Destroyed 567 | . . 3 . . 79 111 20 1 6 49 31 83 2 34 4 8 . 9 127 Melee 12 | . . . . . . 1 3 1 . . . . . 1 4 2 . . . Projectile 145 | . . 3 . . . 2 . . . . . 9 2 27 . 6 . 9 87 AOE 410 | . . . . . 79 108 17 . 6 49 31 74 . 6 . . . . 40 Terrain Rammed . | . . . . . . . . . . . . . . . . . . . . Walls Destroyed . | . . . . . . . . . . . . . . . . . . . . Machines Disabled . | . . . . . . . . . . . . . . . . . . . . Actions | -11 -10 -9 -9 -9 -8 -8 -8 -8 -8 -7 -7 -7 -7 -6 -6 -6 -6 -5 -5 --------- Run | Scr Mat Mat Min Exi Min Mat Gar Mat Gar Fac Gar Fac Gar Fac Low Low Dat Pro Fac Total 15304 | 81 574 1004 462 294 293 1818 1206 432 1178 536 1210 1500 824 1414 396 557 200 504 821 Wait 690 | . 28 30 . . 1 151 4 23 57 13 54 68 55 118 . 1 11 7 69 Move 12042 | 59 409 711 430 290 260 1336 1071 331 881 481 1009 1153 597 1051 375 509 148 470 471 Hop . | . . . . . . . . . . . . . . . . . . . . Pick Up 196 | 4 25 12 6 4 2 39 7 6 8 2 15 16 13 6 4 7 5 3 12 Fast Attach 151 | 7 5 20 . . . 10 6 9 10 2 7 21 11 14 3 2 6 . 18 Attach 120 | . 4 9 2 . . 16 2 2 6 2 4 18 6 18 1 4 2 3 21 Detach 32 | . 1 3 . . . 3 . . . . . 8 . 2 . 6 4 . 5 Swap 220 | . 6 11 5 . 6 27 12 10 11 9 10 38 12 39 1 . 1 1 21 Drop 234 | . 19 31 6 . . 34 10 14 13 3 20 28 15 17 2 2 10 2 8 Fire 1275 | 11 77 175 11 . 24 201 69 36 45 24 47 118 70 128 . 23 8 18 190 Melee 84 | . . . . . . 1 17 1 17 . 16 6 9 5 10 2 . . . Ram 7 | . . . . . . . . . . . . 1 . . . 1 . . 5 Kick . | . . . . . . . . . . . . . . . . . . . . Crush 5 | . . 2 2 . . . . . . . . . . . . . . . 1 Escape Stasis 138 | . . . . . . . 8 . 26 . 28 24 36 16 . . . . . Rewire 105 | . . . . . . . . . 104 . . 1 . . . . . . . Trap 5 | . . . . . . . . . . . . . . . . . 5 . . Miscellaneous . | . . . . . . . . . . . . . . . . . . . . Route ------- -11/Scrapyard -10/Materials (discovered 4 exits: *Mat x3 / [*Min]) -9/Materials (discovered 4 exits: *Mat x2 / *Min x2) -9/Mines (discovered 3 exits: *Mat x2 / *Exi) -9/Exiles -8/Mines -8/Materials (discovered 5 exits: *Fac x3 / *Sto / Gar) -8/Garrison (discovered 3 exits: *Mat x3) -8/Materials (discovered 2 exits: *Sto / Gar) -8/Garrison (discovered 2 exits: *Fac x2) -7/Factory -7/Garrison (discovered 3 exits: *Fac x3) -7/Factory (discovered 4 exits: *Fac / *Low x2 / Gar) -7/Garrison (discovered 3 exits: *Fac x3) -6/Factory (discovered 4 exits: *Fac x2 / [*Low x2]) -6/Lower Caves -6/Lower Caves -6/Data Miner -5/Proximity Caves -5/Factory History --------- Turn | Location | Event 21 | -11/Scrapyard | Discovered new exit (range 16) 118 | -11/Scrapyard | Entered Materials 206 | -10/Materials | Discovered new exit (range 8) 312 | -10/Materials | Build established: Mutant 414 | -10/Materials | Discovered new exit (range 9) 450 | -10/Materials | Core integrity fell below 50% 756 | -10/Materials | Discovered new exit (range 14) 944 | -10/Materials | Discovered new exit (range 13) 1045 | -10/Materials | Entered another Materials area 1045 | -9/Materials | Accompanied by 1 ally 1045 | -9/Materials | Evolved 2 slots: Propulsion x1, Utility x1 1080 | -9/Materials | Identified exit to Mines 1357 | -9/Materials | Lost 3 parts (2n1u) 1843 | -9/Materials | Discovered new exit (range 15) 2245 | -9/Materials | First assault squad dispatched 2383 | -9/Materials | Discovered new exit (range 7) 2607 | -9/Materials | Build established: Scavenger-Mutant 2745 | -9/Materials | Entered Mines 2832 | -9/Mines | Deemed a non-threat by the Exiles lab entrance 2977 | -9/Mines | Core integrity fell below 50% 3182 | -9/Mines | Found a damaged Exp. Sensor Array with a note attached 3193 | -9/Mines | Found Prototype Device 3343 | -9/Mines | Discovered new exit (range 7) 3349 | -9/Mines | Discovered new exit (range 10) 3361 | -9/Mines | Learned location of Storage (-8) 3464 | -9/Mines | Discovered new exit (range 5) 3470 | -9/Mines | Build established: Hauler-Mutant 3470 | -9/Mines | Entered Exiles 3506 | -9/Exiles | Met 8R-AWN 3533 | -9/Exiles | Met EX-HEX 3575 | -9/Exiles | Met EX-BIN 3592 | -9/Exiles | Aligned with FarCom system 3593 | -9/Exiles | Given EX-Vault access code 3628 | -9/Exiles | Opened EX-Vault 3643 | -9/Exiles | Found Chronowheel 3650 | -9/Exiles | Found Field Lobotomy Kit 3652 | -9/Exiles | Found Longsword +1 3686 | -9/Exiles | Warned to stay clear of 0b10 Research branches 3725 | -9/Exiles | Met EX-DEC 3897 | -9/Exiles | Discovered new exit (range 10) 3909 | -9/Exiles | Stole three prototypes: Chronowheel, Field Lobotomy Kit, Longsword +1 3909 | -9/Exiles | Entered Mines 4191 | -8/Mines | Destroyed 7 combat bots 4206 | -8/Mines | Discovered new exit (range 7) 4365 | -8/Mines | Entered Materials 4365 | -8/Materials | Evolved 2 slots: Propulsion x1, Utility x1 4381 | -8/Materials | Identified exit to Storage 5085 | -8/Materials | Discovered new exit (range 16) 5206 | -8/Materials | Identified Exp. Sensor Array 5392 | -8/Materials | Discovered new exit (range 8) 6155 | -8/Materials | Repaired Exp. Sensor Array 6390 | -8/Materials | Garrison activated, responded to threat 6566 | -8/Materials | Discovered new exit (range 8) 6629 | -8/Materials | Core integrity fell below 50% 6649 | -8/Materials | Lost 3 parts (2u1w) 6724 | -8/Materials | Garrison activated, responded to threat 6776 | -8/Materials | Lost 4 parts (3n1u) 6886 | -8/Materials | Identified exit to Garrison 6925 | -8/Materials | Garrison activated, responded to threat 7090 | -8/Materials | Entered Garrison 7090 | -8/Garrison | Accompanied by 2 allies 7309 | -8/Garrison | Triggered checkpoint 7318 | -8/Garrison | Triggered checkpoint 7357 | -8/Garrison | Destroyed 10 combat bots 7502 | -8/Garrison | Discovered new exit (range 13) 7752 | -8/Garrison | Discovered new exit (range 10) 7808 | -8/Garrison | Installed Relay Interface Framework 7880 | -8/Garrison | Triggered checkpoint 7923 | -8/Garrison | Garrison Relay disabled 8168 | -8/Garrison | Triggered checkpoint 8209 | -8/Garrison | Garrison Relay disabled 8664 | -8/Garrison | Triggered checkpoint 8730 | -8/Garrison | Garrison Relay disabled 8756 | -8/Garrison | Triggered checkpoint 8911 | -8/Garrison | Triggered checkpoint 9022 | -8/Garrison | Triggered checkpoint 9069 | -8/Garrison | Garrison Relay disabled 9196 | -8/Garrison | Discovered new exit (range 10) 9763 | -8/Garrison | Build established: Bothacker-Mutant 9826 | -8/Garrison | Triggered checkpoint 10127 | -8/Garrison | Build established: Hauler-Mutant 10758 | -8/Garrison | Entered Materials 10758 | -8/Materials | Accompanied by 2 allies 10880 | -8/Materials | Build established: Bothacker-Mutant 11098 | -8/Materials | Discovered exit to Storage (range 15) 11621 | -8/Materials | Identified exit to Garrison 11656 | -8/Materials | Entered Garrison 11730 | -8/Garrison | Triggered checkpoint 11757 | -8/Garrison | Garrison Relay disabled 11857 | -8/Garrison | Triggered checkpoint 11862 | -8/Garrison | Triggered checkpoint 11962 | -8/Garrison | Discovered new exit (range 10) 11984 | -8/Garrison | Expanded RIF knowledge: Zone Cloak 12076 | -8/Garrison | Triggered checkpoint 12081 | -8/Garrison | Triggered checkpoint 12147 | -8/Garrison | Lost 4 parts (1p3n) 12367 | -8/Garrison | Build established: Hauler-Mutant 12404 | -8/Garrison | Triggered checkpoint 12407 | -8/Garrison | Core integrity fell below 20% 12480 | -8/Garrison | Garrison Relay disabled 12555 | -8/Garrison | Discovered new exit (range 12) 13305 | -8/Garrison | Triggered checkpoint 13385 | -8/Garrison | Garrison Relay disabled 13682 | -8/Garrison | Build established: Bothacker-Mutant 13813 | -8/Garrison | Entered Factory 13813 | -7/Factory | Accompanied by 5 allies 13813 | -7/Factory | Evolved 2 slots: Utility x2 13815 | -7/Factory | FarCom data flow suspended 14195 | -7/Factory | Garrison activated, responded to threat 14238 | -7/Factory | Destroyed 10 combat bots 14646 | -7/Factory | Identified exit to Garrison 14647 | -7/Factory | Entered Garrison 14710 | -7/Garrison | Triggered checkpoint 14849 | -7/Garrison | Garrison Relay disabled 14948 | -7/Garrison | Triggered checkpoint 15046 | -7/Garrison | Triggered checkpoint 15077 | -7/Garrison | Triggered checkpoint 15280 | -7/Garrison | Triggered checkpoint 15367 | -7/Garrison | Discovered new exit (range 11) 15560 | -7/Garrison | Discovered new exit (range 10) 15596 | -7/Garrison | Expanded RIF knowledge: Threat Obfuscation 15648 | -7/Garrison | Triggered checkpoint 15688 | -7/Garrison | Garrison Relay disabled 16042 | -7/Garrison | Triggered checkpoint 16077 | -7/Garrison | Garrison Relay disabled 16141 | -7/Garrison | Discovered new exit (range 10) 16380 | -7/Garrison | Triggered checkpoint 16437 | -7/Garrison | Garrison Relay disabled 17172 | -7/Garrison | Entered Factory 17824 | -7/Factory | Discovered new exit (range 10) 18006 | -7/Factory | Discovered new exit (range 15) 18516 | -7/Factory | Fabricated Cold Fusion Reactor? 18733 | -7/Factory | Cargo convoy interrupted 18743 | -7/Factory | Core integrity fell below 50% 18768 | -7/Factory | Destroyed 7 combat bots 18794 | -7/Factory | Lost 4 parts (1p2n1w) 18828 | -7/Factory | Found Prototype Protection 18830 | -7/Factory | Found Prototype Launcher 18830 | -7/Factory | Identified Tesla Bomb Launcher 18843 | -7/Factory | Found Tesla Bomb Launcher 19136 | -7/Factory | Identified exit to Lower Caves 19191 | -7/Factory | Identified exit to Garrison 19197 | -7/Factory | Entered Garrison 19204 | -7/Garrison | Expanded RIF knowledge: Structural Interface 19311 | -7/Garrison | Triggered checkpoint 19371 | -7/Garrison | Lost 6 parts (3n1u2w) 19456 | -7/Garrison | Garrison Relay disabled 19486 | -7/Garrison | Identified Active Cooling Armor 19818 | -7/Garrison | Build established: Botlord-Mutant 19918 | -7/Garrison | Triggered checkpoint 19924 | -7/Garrison | Triggered checkpoint 20286 | -7/Garrison | Triggered checkpoint 20340 | -7/Garrison | Garrison Relay disabled 20490 | -7/Garrison | Discovered new exit (range 12) 20678 | -7/Garrison | Triggered checkpoint 20869 | -7/Garrison | Discovered new exit (range 13) 20916 | -7/Garrison | Triggered checkpoint 20940 | -7/Garrison | Garrison Relay disabled 21062 | -7/Garrison | Triggered checkpoint 21137 | -7/Garrison | Garrison Relay disabled 21194 | -7/Garrison | Discovered new exit (range 15) 21218 | -7/Garrison | Entered Factory 21218 | -6/Factory | Evolved 2 slots: Utility x2 21321 | -6/Factory | Discovered new exit (range 11) 21497 | -6/Factory | Fabricated Cargo Storage Unit? 21568 | -6/Factory | First assault squad dispatched 21595 | -6/Factory | Discovered new exit (range 13) 21712 | -6/Factory | Garrison activated, responded to threat 22523 | -6/Factory | Build established: Bothacker-Mutant 22543 | -6/Factory | Garrison activated, responded to threat 22551 | -6/Factory | Cargo convoy interrupted 22671 | -6/Factory | Destroyed 13 combat bots 22698 | -6/Factory | Lost 3 parts (1p2w) 23064 | -6/Factory | Discovered new exit (range 8) 23115 | -6/Factory | Core integrity fell below 50% 23125 | -6/Factory | Garrison activated, responded to threat 23127 | -6/Factory | Local machine network offline 23281 | -6/Factory | Discovered new exit (range 10) 23345 | -6/Factory | Entered Lower Caves 23345 | -6/Lower Caves | Accompanied by 2 allies 23366 | -6/Lower Caves | Build established: Hauler-Mutant 24044 | -6/Lower Caves | Discovered new exit (range 4) 24055 | -6/Lower Caves | Entered another Lower Caves area 24055 | -6/Lower Caves | Accompanied by 2 allies 24063 | -6/Lower Caves | Attracted the attention of an 0b10 checkpoint 24336 | -6/Lower Caves | Encountered a Warlord checkpoint 24870 | -6/Lower Caves | Spotted HS-L9D(f) 24872 | -6/Lower Caves | Encountered a Master Thief 24872 | -6/Lower Caves | Spotted DK-D20(f) 24873 | -6/Lower Caves | Encountered a Master Thief 24874 | -6/Lower Caves | Spotted NJ-RG0(f) 24875 | -6/Lower Caves | Encountered a Master Thief 24875 | -6/Lower Caves | Spotted PT-T76(f) 24875 | -6/Lower Caves | Spotted R3-1W8(f) 24876 | -6/Lower Caves | Encountered a Master Thief 24876 | -6/Lower Caves | Encountered a Master Thief 24877 | -6/Lower Caves | Destroyed HS-L9D(f) 24877 | -6/Lower Caves | Allies destroyed DK-D20(f) 24893 | -6/Lower Caves | Chronowheel stolen by Master Thief 24897 | -6/Lower Caves | Longsword +1 stolen by Master Thief 24900 | -6/Lower Caves | Field Lobotomy Kit stolen by Master Thief 24937 | -6/Lower Caves | Discovered new exit (range 13) 24965 | -6/Lower Caves | Entered Data Miner 24965 | -6/Data Miner | Accompanied by 1 ally 24965 | -6/Data Miner | Discovered new exit (range 6) 25023 | -6/Data Miner | Met Data Miner 25076 | -6/Data Miner | Learned location of Section 7 (-2) 25076 | -6/Data Miner | Acquired the access code to Warlord's prototype stash 25108 | -6/Data Miner | Received God Mode back door access code from Data Miner 25127 | -6/Data Miner | Destroyed Data Miner 25131 | -6/Data Miner | Found Prototype Hackware 25136 | -6/Data Miner | Interfaced with the Data Conduit 25142 | -6/Data Miner | Found Prototype Hackware 25147 | -6/Data Miner | Found Prototype Hackware 25207 | -6/Data Miner | Lost 3 parts (1n1u1w) 25244 | -6/Data Miner | Found Prototype Device 25244 | -6/Data Miner | Identified Active Sensor Suite 25380 | -6/Data Miner | Identified exit to Proximity Caves 25388 | -6/Data Miner | Entered Proximity Caves 25490 | -5/Proximity Caves | Build established: Scavenger-Mutant 26161 | -5/Proximity Caves | Build established: Scavenger-Skirmisher 26256 | -5/Proximity Caves | Learned Factory interactive machine intel 26679 | -5/Proximity Caves | Discovered new exit (range 15) 26730 | -5/Proximity Caves | Identified exit to Factory 27129 | -5/Proximity Caves | Entered Factory 27129 | -5/Factory | Evolved 2 slots: Propulsion x1, Utility x1 27130 | -5/Factory | Loaded intel: 241 machine locations 27131 | -5/Factory | Loaded intel: 49 interactive machine locations 27163 | -5/Factory | Build established: Hauler-Mutant 27328 | -5/Factory | Identified System Mapper 27821 | -5/Factory | Spotted B-75 Beast 27910 | -5/Factory | Fabricated Combat Drone Bay (x1) 28117 | -5/Factory | Identified Ghost Barrier 28118 | -5/Factory | Identified Deep Network Scanner 28194 | -5/Factory | Found Tesla Bomb Launcher 28298 | -5/Factory | Cargo convoy interrupted 28314 | -5/Factory | P-70 Sage assimilated allied Beamer 6a 28385 | -5/Factory | System corruption reached 10% 28396 | -5/Factory | Core integrity fell below 50% 28420 | -5/Factory | Lost 9 parts (1p4n4w) 28425 | -5/Factory | Build established: Hacker-Mutant 28529 | -5/Factory | Lost 3 parts (1n1u1w) 28670 | -5/Factory | Core integrity fell below 20% 28673 | -5/Factory | Garrison activated, responded to threat 28687 | -5/Factory | Lost 5 parts (1p2n2u) 28822 | -5/Factory | System corruption reached 30% 28827 | -5/Factory | Destroyed by P-70 Sage with Tesla Rifle Last Messages --------------- 28815_ Complication: Energy sink damages Corrupted Adv. Assault Cannon (-70). 28816_ U-05 Engineer lays Concrete. 28816_ R-10 Processor collects Corrupted Med. Treads. 28817_ S-27 Virus knocked back. 28817_ U-05 Engineer lays Concrete. 28819_ S-27 Virus destroyed. 28819_ P-70 Sage resets I-47 Archangel, system corruption cleaned. 28820_ U-05 Engineer lays Concrete. 28821_ Ghost Barrier destroyed. 28821_ U-05 Engineer lays Concrete. 28823_ P-70 Sage knocked back. 28823_ U-05 Engineer lays Concrete. 28824_ YI#G OT 28825_ P-70 Sage resets P-70 Sage, system corruption cleaned. 28825_ R-10 Processor collects Corrupted Hvy. Laser. 28826_ U-05 Engineer lays Concrete. Map ----- +----------------------------------------------------+ | #?????# #????????????????? ??"""""??G"???????????? | | #?????#%#????????????????? ????????"""???????????? | | #?????# #??##????????????# ??????????????????????? | | #???###+##########??????? ???????????????""??""?? | | #???# !%= #??????? ???????????????""??""?? | | ###?# !|%[* #??????# ???????????????"""?"""? | | #####]|!!==! #??????+ ???????????????"""?"""? | | =* #!%!=*!% #??????# #???????????????"""?"""? | | % !# %!!!% % ####???#%#??????????????????????? | | % +% %! !=%% = + #??????????????????????? | | % # //% % % ######## #??????????????????????? | | |# //!% % #??????#u#??????????????????????? | | ### # % % #??????# #??????????????????????? | | # # %% % # #????# #??????????????????????? | | + # % %% %###????# #??????????????????????? | | # # %%%%%###????#%#??????????????????????? | | # #########+###########;########???????????????? | | # T???????#%##### # #???????????????? | | # #??????#%##?## % #?????????????????? | | ### ##??????#%#??##=! R #?????????????????? | | ### ######### #####%%% R % #?#???????????????? | | % % #==!*% "=% ##### ????????? | | u % %#%u%=* "" [ /R=!% ???????? | | Rp%p%!|!%= ##### ????????? | | !|#== !=]] #?????????????????? | | % # ]@ #?????????????????? | | ################# # ] #?????????????????? | | ????????????????# # "Y"= #?????????????????? | | ????????????????# # """ #?????????????????? | | ????????????????# ##############?????????????????? | | ###########?????# #??????????????????????????????? | | #?????# ??????????????????????????????? | | "" ###???# #??????????????????????????????? | | "" ##???# #??????????????????????????????? | | F #"#???# #??????????????????????????????? | | "" # #???? ???????????????????????????????? | | # #???? ???????????????????????????????? | | |% % # #???? ???????????????????????????????? | | = !* # #???? ???????????????????????????????? | | ! ! % # #???? ???????????????????????????????? | | ! %= # #???? ???????????????????????????????? | | # #???? ???????????????????????????????? | | ###???? ???????????????????????????????? | | ############# #??????????????????????????????? | | #??????????????????????????????? | | ^ #??????????????????????????????? | | """ """ """ #?????????????""??""??""???????? | | """ """ """ ? ? ??????????????""??""??""???????? | | """ """ """?????????????????????"""?"""?"""??????? | | ???????????????????"""?"""?"""??????? | +----------------------------------------------------+ Best States ------------- Heat Dissipation 97 Coolant Potential 65 Energy Generation 21 Energy Capacity 710 Matter Stores 300 Matter Capacity 300 Sight Range 22 Robot Scan Range 20 Terrain Scan Range 16 Terrain Scan Density 10 Jamming Range 12 Armor Coverage 1200 Resistance: KI 20 Resistance: TH 20 Propulsion Shielding 66 Weapon Cycling 15 Evasion (%) 55 Targeting Accuracy 8 Target Analysis 6 Core Analysis 6 Armor Integrity Analysis 30 Recoil Reduction 5 Salvage Targeting 2 Offensive Hacking 25 Defensive Hacking 20 Relay Coupler Types 2 Relay Coupler Value 46 Item Schematics ----------------- Hcp. Storage Unit | -9/Materials | Hacked Cargo Storage Unit | -9/Materials | Scanalyzed Exp. Sensor Array | -8/Materials | Scanalyzed Imp. Propulsion Shielding | -8/Materials | Scanalyzed Hrd. Medium Armor Plating | -8/Materials | Scanalyzed Imp. System Guard | -6/Data Miner | Free Phase Gun | -6/Data Miner | Free Force Lance | -6/Data Miner | Free Adv. Transmission Jammer | -6/Data Miner | Free Field Propulsion Array | -6/Data Miner | Free Enh. Coil Gun | -6/Data Miner | Free Imp. Matter Compressor | -6/Data Miner | Free Cld. Gravmag System | -6/Data Miner | Free Lgt. Regenerative Plating | -6/Data Miner | Free Combat Drone Bay | -6/Data Miner | Free Robot Schematics ------------------ G-67 Veteran | -6/Data Miner | Free X-72 Disruptor | -6/Data Miner | Free R-10 Processor | -6/Data Miner | Free A-15 Conveyor | -6/Data Miner | Free Fabricated ------------ Cold Fusion Reactor | x1 | -7/Factory | Preloaded Cargo Storage Unit | x1 | -6/Factory Combat Drone Bay | x1 | -5/Factory Alien Tech Used ----------------- None Achievements -------------- None Challenges ------------ None Game ------ Seed AuthchipSalvageCharger Manual? 0 Play Time 02:47:37 Cumulative 596.4 hours Start 2022.04.21 @ 18:49:26 End 2022.04.22 @ 23:22:57 Sessions 3 Manual Loads 0 Difficulty Rogue Special Mode None Game No. 373 Rogue 373 Adventurer 0 Explorer 0 Win Type - Total 8 Types 5/0/1/1/1/0/0/0/0 Lore% 86 Gallery% 87 Achievement% 74 Wizard Run 0 Options --------- ASCII 0 Keyboard 0 Movement Mouse Keybinds 1 Fullscreen 2 Font 24/Smallcaps Map View 68x50 Tactical HUD 1 Map Filters NONE Filters NONE Steam 1 RUN: d9768b4b-1177-4da3-b539-80bf5bf97314